Cogmind - Beta 10.2 @@@ ROGUE MODE // 2021.04.15 @ 15:29:22 Player: kicktown Result: Destroyed by Y-45 Defender with Heavy Assault Rifle Performance ------------- Evolutions (1) 500 Regions Visited (3) 600 Robots Destroyed (80) 400 Value Destroyed (1777) 1777 Prototype IDs (6) 120 Alien Tech Used (0) 0 Bonus (38) 38 TOTAL SCORE: 3435 Bonus ------- High Alert Combat Kills 38 Cogmind --------- Core Integrity 0/400 Matter 181/300 Energy 280/280 System Corruption 2% Temperature Cool (0) Movement Treading (180) Ox1 Location -9/Storage Parts ------- > --- POWER (1) -------- Cooled Ion Engine > --- PROPULSION (3) --- Improved Treads Improved Aluminum Leg > --- UTILITY (3) ------ Small Storage Unit High-capacity Storage Unit Gravity Neutralizing Apparatus > --- WEAPON (2) ------- Improved EM Shotgun Mini Assault Cannon > --- INVENTORY (14) --- Improved Heat Sink Gravity Neutralizing Apparatus Gravity Neutralizing Apparatus Gravity Neutralizing Apparatus Gravity Neutralizing Apparatus Structural Scanner Sensor Array ECM Suite Utility Shielding Recalibrator Improved Light Cannon EMP Blaster Datajack Plasma Cutter Peak State ------------ > --- POWER ------------ Cooled Ion Engine > --- PROPULSION ------- Improved Treads Improved Aluminum Leg > --- UTILITY ---------- Small Storage Unit High-capacity Storage Unit Gravity Neutralizing Apparatus > --- WEAPON ----------- Improved EM Shotgun Mini Assault Cannon > --- INVENTORY -------- Improved Heat Sink Gravity Neutralizing Apparatus Gravity Neutralizing Apparatus Gravity Neutralizing Apparatus Gravity Neutralizing Apparatus Structural Scanner Sensor Array ECM Suite Utility Shielding Recalibrator Improved Light Cannon EMP Blaster Datajack Plasma Cutter [Rating: 27] Favorites ----------- Power Ion Engine Engine Ion Engine Power Core Nuclear Core Propulsion Carbon-fiber Leg Treads Improved Treads Leg Carbon-fiber Leg Wheel Compact Wheel Flight Unit VTOL Module Utility High-capacity Storage Unit Device Structural Scanner Storage High-capacity Storage Unit Processor Transport Network Coupler Protection Light Armor Plating Weapon Shock Rifle Energy Gun Shock Rifle Energy Cannon Light EM Pulse Cannon Ballistic Gun Assault Rifle Ballistic Cannon Mini Assault Cannon Launcher Mini Grenade Launcher Special Weapon Mining Laser Special Melee Weapon Datajack Build | -11 -10 -9 -9 ------- Run | Scr Mat Mat Sto Slots Evolved 2 | . . 2 . Power . | . . . . Propulsion 1 | . . 1 . Utility 1 | . . 1 . Weapon . | . . . . Parts Attached 137 | 8 36 47 46 Power 9 | 1 2 4 2 Engine 6 | 1 2 1 2 Core 3 | . . 3 . Reactor . | . . . . Propulsion 51 | 3 18 15 15 Treads 18 | . 9 4 5 Leg 15 | . . 7 8 Wheel 12 | 3 9 . . Hover . | . . . . Flight 6 | . . 4 2 Utility 29 | 2 2 14 11 Device 12 | 1 . 7 4 Storage 5 | 1 2 1 1 Processor 1 | . . 1 . Hackware . | . . . . Protection 11 | . . 5 6 Artifact . | . . . . Weapon 48 | 2 14 14 18 Energy Gun 11 | . 2 3 6 Energy Cannon 1 | . . 1 . Ballistic Gun 13 | 2 6 5 . Ballistic Cannon 7 | . . . 7 Launcher 1 | . . 1 . Special Weapon 4 | . 2 2 . Impact Weapon . | . . . . Slashing Weapon . | . . . . Piercing Weapon . | . . . . Special Melee Weapon 11 | . 4 2 5 Unidentified Prototypes 6 | . . 1 5 Parts Lost 14 | . . 4 10 Power 1 | . . . 1 Propulsion 7 | . . 2 5 Utility 2 | . . . 2 Weapon 4 | . . 2 2 Highest Loss Streak 4 | . . 4 2 Average Slot Usage (%) 98 | . 100 97 98 Engine 7 | . 14 1 8 Core 3 | . . 9 2 Treads 9 | . 21 8 3 Leg 17 | . . 18 27 Wheel 1 | . 6 . . Flight 1 | . . 4 . Device 12 | . 7 17 13 Storage 13 | . 20 7 13 Protection 5 | . . 7 6 Energy Gun 8 | . 1 9 13 Ballistic Gun 8 | . 24 7 . Ballistic Cannon 3 | . . . 6 Special Weapon 1 | . 1 2 . Special Melee Weapon 1 | . . 1 1 Naked Turns . | . . . . Heaviest Build 73 | 13 73 49 58 Greatest Support 51 | 26 46 51 46 Greatest Overweight (x) 15 | 1 2 3 15 Average Overweight (x) . | . . . 1 Largest Inventory Capacity 20 | 6 20 20 14 Average Capacity 11 | 5 13 9 12 Most Carried 20 | 6 20 20 14 Average Carried 10 | 4 12 8 11 Final Capacity 20 | 6 20 12 14 Final Carried 20 | 6 20 12 14 Class Distribution -------------------- 87% | Mutant 12% | Hauler-Mutant Dominant Class ---------------- Hauler-Mutant | -10/Materials Mutant | -9/Materials Mutant | -9/Storage Resources | -11 -10 -9 -9 ----------- Run | Scr Mat Mat Sto Matter Collected 2651 | 372 567 716 996 Remotely . | . . . . Salvage Created 2940 | 187 581 654 1518 Parts 160 | 19 34 40 67 Haulers Intercepted 9 | . 2 1 6 Recyclers Shooed 4 | 1 2 . 1 Parts Field Recycled . | . . . . Retrieved Matter . | . . . . Parts Self-Destructed . | . . . . Prevented . | . . . . Kills | -11 -10 -9 -9 ------- Run | Scr Mat Mat Sto Combat Hostiles Destroyed 46 | . 10 14 22 Guns 34 | . 10 13 11 Cannons 8 | . . 1 7 AOE 2 | . . . 2 Classes Destroyed 10 | 3 4 2 1 Worker 9 | 2 4 1 2 Tunneler 5 | 5 . . . Hauler 9 | . 2 1 6 Recycler 4 | 1 1 . 2 Mechanic 1 | . . . 1 Operator 1 | . . 1 . Watcher 5 | . 1 2 2 Swarmer 9 | . 3 4 2 Grunt 28 | . 7 9 12 Sentry 9 | . . 1 8 Best Kill Streak 4 | 4 3 4 4 Combat Bots Only 4 | . 3 4 3 Max Kills in Single Turn 2 | 1 1 1 2 Gunslinging . | . . . . Exploded 1 | . . . 1 Melee . | . . . . Uniques/NPCs Destroyed . | . . . . Combat | -11 -10 -9 -9 -------- Run | Scr Mat Mat Sto Damage Taken 2798 | . 740 643 1415 Core 522 | . 114 145 263 Absorbed by Shields . | . . . . Core Remaining (%) 77 | 100 54 . . Volleys Fired 259 | 24 72 57 106 Largest 2 | 2 2 2 2 Hottest 120 | 40 120 100 100 Shots Fired 446 | 48 140 98 160 Gun 371 | 48 137 90 96 Cannon 66 | . . 5 61 Launcher 1 | . . 1 . Special 8 | . 3 2 3 Kinetic 292 | 48 132 51 61 Thermal 13 | . 8 2 3 Explosive 1 | . . 1 . Electromagnetic 140 | . . 44 96 Robot Hit Streak 34 | 6 34 8 17 Robot Miss Streak 6 | 6 3 2 3 Penetration Max . | . . . . Secondary Targets 3 | . 1 2 . Max Gunslinging Chain 1 | . 1 1 . Shots Hit Robots 312 | 25 104 61 122 Core Hits 111 | 11 29 25 46 Critical Hits 3 | . . . 3 Critical Kills 3 | . . . 3 Critical Parts Destroyed . | . . . . Melee Attacks 19 | . 4 2 13 Impact . | . . . . Slashing . | . . . . Piercing . | . . . . Sneak Attacks 17 | . 4 2 11 Combat Hostiles . | . . . . Follow-up Attacks . | . . . . Damage Inflicted 5286 | 243 1279 1079 2685 Guns 3849 | 243 1279 884 1443 Cannons 1005 | . . 100 905 Explosions 432 | . . 95 337 Melee . | . . . . Ramming . | . . . . Kinetic 2785 | 243 1229 408 905 Thermal 482 | . 50 95 337 Explosive . | . . . . Electromagnetic 2019 | . . 576 1443 Impact . | . . . . Slashing . | . . . . Piercing . | . . . . Highest Corruption 2 | . . . 2 Average Corruption 1 | . . . 1 Corruption Purged . | . . . . Effects 7 | . . . 7 Message Errors 3 | . . . 3 Heat Flow Errors 1 | . . . 1 Energy Discharges 2 | . . . 2 Data Loss (minor) 1 | . . . 1 Overload Shots . | . . . . Overflow Damage 52 | . . . 52 Projectiles 28 | . . . 28 Explosions 24 | . . . 24 Melee . | . . . . Knockbacks 3 | . . . 3 Impact . | . . . . Kinetic 3 | . . . 3 Secondary . | . . . . Self-Inflicted Damage 188 | . . 72 116 Shots 6 | . . 2 4 Rammed . | . . . . Targets Rammed . | . . . . Kicked . | . . . . Crushed . | . . . . Highest Temperature 246 | . 45 216 246 Average Temperature 55 | . 14 52 62 Received Heat Transfer 1107 | . 372 237 498 Effects 3 | . . 1 2 Energy Bleed 1 | . . 1 . Interference 2 | . . . 2 Siege Activations . | . . . . Robots Corrupted 3 | . . . 3 Combat Hostiles 2 | . . . 2 Parts Fried 7 | . . . 7 Impact Corruptions . | . . . . Robots Melted . | . . . . Combat Hostiles . | . . . . Parts Melted . | . . . . Heat Transferred 798 | . 148 150 500 Parts Sabotaged . | . . . . Parts Stolen . | . . . . Parts Stripped . | . . . . Power Chain Reactions 11 | . . 3 8 Missiles Intercepted . | . . . . Alert | -11 -10 -9 -9 ------- Run | Scr Mat Mat Sto Peak Influence 447 | 40 286 447 400 Initial 122 | . 26 28 122 Average 230 | 22 149 292 263 Maximum Alert Level 2 | . 1 2 2 Low Security (%) 33 | 100 67 11 19 Level 1 61 | . 32 75 77 Level 2 4 | . . 12 3 Level 3 . | . . . . Level 4 . | . . . . Level 5 . | . . . . High Security . | . . . . Max Security . | . . . . Squads Dispatched 9 | . 3 2 4 Investigation 4 | . 3 1 . Extermination . | . . . . Reinforcement 2 | . . 1 1 Assault . | . . . . Garrison 3 | . . . 3 Intercept . | . . . . Construction Impeded . | . . . . Haulers Reinforced . | . . . . Stealth | -11 -10 -9 -9 --------- Run | Scr Mat Mat Sto Distress Signals 4 | . 1 2 1 Communications Jammed . | . . . . Distress Signals . | . . . . Times Spotted 78 | . 16 28 34 Peak Tracking Total 9 | . 4 9 4 Tactical Retreats 10 | . 2 5 3 Traps | -11 -10 -9 -9 ------- Run | Scr Mat Mat Sto Traps Triggered 6 | . 3 . 3 Indirectly . | . . . . Trap Hack Attempts . | . . . . Triggered . | . . . . Disarmed . | . . . . Reprogrammed . | . . . . Reused . | . . . . Traps Extracted . | . . . . Installed . | . . . . Triggered . | . . . . Machines | -11 -10 -9 -9 ---------- Run | Scr Mat Mat Sto Machines Disabled 7 | . . 2 5 Max in Single Turn 1 | . . 1 1 Machines Sabotaged . | . . . . Garrisons Compromised . | . . . . Overloaded Fab Kills . | . . . . Fab Network Shutdowns . | . . . . Hacking | -11 -10 -9 -9 --------- Run | Scr Mat Mat Sto Machines Accessed 10 | . 3 2 5 Terminals 6 | . 2 . 4 Fabricators . | . . . . Repair Stations 1 | . . . 1 Recycling Units 2 | . 1 1 . Scanalyzers 1 | . . 1 . Garrison Access . | . . . . Total Hacks 26 | . 7 7 12 Successful 13 | . 3 4 6 Failed 12 | . 3 3 6 Catastrophic 1 | . 1 . . Database Lockouts 1 | . 1 . . Manual 9 | . 7 . 2 Terminals 15 | . 5 . 10 Fabricators . | . . . . Repair Stations 2 | . . . 2 Recycling Units 5 | . 2 3 . Scanalyzers 4 | . . 4 . Garrison Access . | . . . . Terminal Hacks 5 | . 1 . 4 Part Schematic 2 | . 1 . 1 Open Door 1 | . . . 1 Unreport Threat 1 | . . . 1 Locate Traps 1 | . . . 1 Fabricator Hacks . | . . . . Repair Station Hacks 2 | . . . 2 Scan Component 1 | . . . 1 Repair 1 | . . . 1 Recycling Unit Hacks 1 | . 1 . . Retrieve Components 1 | . 1 . . Scanalyzer 4 | . . 4 . Insert Component 2 | . . 2 . Analyze 2 | . . 2 . Garrison Access Hacks . | . . . . Unauthorized Hacks 1 | . 1 . . Terminals . | . . . . Fabricators . | . . . . Repair Stations . | . . . . Recycling Units 1 | . 1 . . Reject 1 | . 1 . . Scanalyzers . | . . . . Garrison Access . | . . . . Data Cores Recovered . | . . . . Used . | . . . . Hacking Detections 9 | . 3 2 4 Full Trace Events 3 | . . 2 1 Feedback Events 1 | . . . 1 Corruption 1 | . . . 1 Feedback Blocked . | . . . . Robot Schematics Acquired . | . . . . Robots Built . | . . . . Matter . | . . . . Time . | . . . . Total Robot Build Rating . | . . . . Part Schematics Acquired 4 | . 1 2 1 Parts Built . | . . . . Matter . | . . . . Time . | . . . . Total Part Build Rating . | . . . . Parts Repaired 1 | . . . 1 Time 26 | . . . 26 Parts Recycled . | . . . . Recycled Matter . | . . . . Retrieved Matter . | . . . . Retrieved Components 10 | . 10 . . Parts Scanalyzed 2 | . . 2 . Part Schematics Acquired 2 | . . 2 . Parts Damaged . | . . . . Bothacking | -11 -10 -9 -9 ------------ Run | Scr Mat Mat Sto Used RIF Installer . | . . . . Robots Hacked 11 | . 3 2 6 Non-combat 11 | . 3 2 6 Combat . | . . . . Robot Hacks Applied 18 | . 4 2 12 no_distress 12 | . 2 2 8 find_recycling 5 | . 2 . 3 find_station 1 | . . . 1 Relay Couplers Released . | . . . . Robots Rewired . | . . . . Allies Hacked . | . . . . Hacks Repelled . | . . . . Allies | -11 -10 -9 -9 -------- Run | Scr Mat Mat Sto Total Allies . | . . . . Largest Group . | . . . . Highest-Rated Group . | . . . . Highest-Rated Ally . | . . . . Total Orders . | . . . . Ally Attacks . | . . . . Total Damage . | . . . . Kills . | . . . . Allies Corrupted . | . . . . Allies Melted . | . . . . Intel | -11 -10 -9 -9 ------- Run | Scr Mat Mat Sto Robot Analysis Total . | . . . . Derelict Logs Recovered . | . . . . Drone Launches . | . . . . Drone Recoveries . | . . . . Exploration | -11 -10 -9 -9 ------------- Run | Scr Mat Mat Sto Turns Passed 3616 | 197 880 965 1574 Spaces Moved 1617 | 125 376 573 543 Core 11 | 3 . 7 1 Treads 385 | . 163 139 83 Legs 720 | . . 261 459 Wheels 335 | 122 213 . . Hover . | . . . . Flight 166 | . . 166 . Fastest Speed 34 | 50 90 34 120 Average Speed 136 | 86 136 114 172 Slowest Speed 800 | 90 180 200 800 Overloaded Moves . | . . . . Propulsion Burnouts . | . . . . Robots Hopped . | . . . . Cave-ins Triggered . | . . . . Exploration Rate (%) 38 | 4 56 33 59 Regions Visited 3 Branch Regions 1 Pre-discovered Areas . | . . . . Known Exits Taken . | . . . . Unknown Exits Taken 3 | 1 1 1 . Scrap Searched . | . . . . Spaces Dug 11 | . 3 2 6 Terrain Destroyed 77 | . 3 22 52 Melee . | . . . . Projectile 25 | . 3 2 20 AOE 52 | . . 20 32 Terrain Rammed . | . . . . Walls Destroyed . | . . . . Machines Disabled . | . . . . Actions | -11 -10 -9 -9 --------- Run | Scr Mat Mat Sto Total 2526 | 167 581 780 998 Wait 362 | . 66 56 240 Move 1614 | 124 375 572 543 Hop . | . . . . Pick Up 68 | 8 16 22 22 Fast Attach 29 | 8 3 9 9 Attach 18 | . . 9 9 Detach 5 | . 1 1 3 Swap 90 | . 33 29 28 Drop 57 | 3 11 23 20 Fire 259 | 24 72 57 106 Melee 19 | . 4 2 13 Ram . | . . . . Kick . | . . . . Crush . | . . . . Escape Stasis 5 | . . . 5 Rewire . | . . . . Trap . | . . . . Miscellaneous . | . . . . Route ------- -11/Scrapyard -10/Materials (discovered 3 exits: *Mat / [*Min x2]) -9/Materials (discovered 2 exits: [*Min] / *Sto) -9/Storage (discovered 1 exit: [*Mat]) History --------- Turn | Location | Event 18 | -11/Scrapyard | Discovered new exit (range 15) 198 | -11/Scrapyard | Entered Materials 331 | -10/Materials | Build established: Mutant 338 | -10/Materials | Discovered new exit (range 9) 631 | -10/Materials | Discovered new exit (range 5) 681 | -10/Materials | Central database locked down 919 | -10/Materials | Build established: Hauler-Mutant 1054 | -10/Materials | Discovered new exit (range 8) 1078 | -10/Materials | Entered another Materials area 1078 | -9/Materials | Evolved 2 slots: Propulsion x1, Utility x1 1240 | -9/Materials | Lost 4 parts (2n2w) 1383 | -9/Materials | Build established: Mutant 1548 | -9/Materials | Discovered new exit (range 7) 2021 | -9/Materials | Discovered new exit (range 4) 2043 | -9/Materials | Entered Storage 2456 | -9/Storage | Repaired Sensor Array 2586 | -9/Storage | Core integrity fell below 50% 2791 | -9/Storage | Garrison activated, responded to threat 2901 | -9/Storage | Core integrity fell below 20% 3202 | -9/Storage | Discovered new exit (range 16) 3617 | -9/Storage | Destroyed by Y-45 Defender with Heavy Assault Rifle Last Messages --------------- 03571_ Acquired Prototype Device. 03571_ Identified Gravity Neutralizing Apparatus. 03572_ System corrupted: Heat flow error (+157). 03574_ Acquired Gravity Neutralizing Apparatus. 03575_ Dropped Targeting Computer. 03576_ Dropped Hcp. Matter Pod. 03576_ Dropped Med. Armor Plating. 03579_ Acquired Gravity Neutralizing Apparatus. 03587_ Dropped Gravity Neutralizing Apparatus. 03587_ Acquired Gravity Neutralizing Apparatus. 03591_ U-05 Engineer repairs door. 03593_ R-06 Scavenger collects Med. Armor Plating. 03593_ U-05 Engineer lays Concrete. 03605_ Connecting with Terminal... >>Traps(Locate) Found 2 traps in 2 arrays: 1x Heavy Explosive Trap 1x Proton Bomb Trap Map updated. 03606_ U-05 Engineer lays Concrete. Map ----- +----------------------------------------------------+ | ?????????????????????????????????????????????????? | | ?????????????????????????????????????????????????? | | ?????????????????????????????????????????????????? | | ?????????????????????????????????????????????????? | | ?????????????????????????????????????????????????? | | ?????????????????????????????????????????????????? | | ?????????????????????????????????????????????????? | | ?????????????????????????????????????????????????? | | ???????????????????????? ???????????????????????? | | ???????????????????????? ???????????????????????? | | ???????????????????????? ???????????????????????? | | ???????????????????????? ???????????????????????? | | ???????????????????????? Y???????????????????????? | | #####??????????????????? ???????????????????????? | | #??????????????????? ???????????????????????? | | #??????????????????? +??????????????????????? | | """#???????????????????# #??????????????????????? | | """#############???????# #??????????????????????? | | """# #???????# #??????????????????????? | | """# #???????# #??????????????????????? | | """# #???????# #??????????????????????? | | # #???????# ##?????????????????????? | | # #??##??## ;###???????????????????? | | # #?##"### #???????????????????? | | # #?#! ^ # #???????????????????? | | +#########+######?#! + @T #???????????????????? | | % * %[! #?# !^ # #???????????????????? | | !][[ #?###### #???????????????????? | | """ % [= #??????## ##???????????????????? | | "" ############???????# #????????????????????? | | " #??????????????????# #????????????????????? | | ###????????????????# #????????????????????? | | ########???????????#k #????????????????????? | | "[%# !! #???????????# #????????????????????? | | "=%+ = !! #???????????#u ###########??????????? | | "" ]*# #???????????# # #??????????? | | !%= #???????????# # ##?????????? | | = # #???????????#k # "#?????????? | | "" #???????????# # #?????????? | | "" %##### ##??????????## + = """ ##?????????? | | "" ###################" # """ #??????????? | | # """ #??????????? | | ! % # #??????????? | | *%%! =%== # ######???###????? | | ##""""##################" ######????????# #????? | | *"=%[^ #??##### #??## #?????????????# #????? | | #% ##??? !?## #?????????????# #????? | | #=^ """#????"""" ?##* ##????????????# #????? | | # ^ """#????"""" # = ##################### | | # """#????"""" [#!= # | +----------------------------------------------------+ Best States ------------- Heat Dissipation 28 Energy Generation 14 Energy Capacity 280 Matter Stores 300 Matter Capacity 300 Sight Range 16 Robot Scan Range 10 Terrain Scan Range 16 Terrain Scan Density 10 ECM Strength 1 Additional Mass Support 12 Armor Coverage 225 Utility Shielding 33 Evasion (%) 63 Recoil Reduction 2 Item Schematics ----------------- Hcp. Storage Unit | -10/Materials | Hacked Hcp. Matter Pod | -9/Materials | Scanalyzed Utility Shielding | -9/Materials | Scanalyzed Imp. Utility Shielding | -9/Storage | Hacked Robot Schematics ------------------ None Fabricated ------------ Nothing Alien Tech Used ----------------- None Achievements -------------- None Challenges ------------ None Game ------ Seed IonicAerolevMultirail Manual? 0 Play Time 01:05:48 Cumulative 19.3 hours Start 2021.04.15 @ 13:41:55 End 2021.04.15 @ 15:29:22 Sessions 1 Manual Loads 0 Difficulty Rogue Special Mode None Game No. 9 Rogue 9 Adventurer 0 Explorer 0 Win Type - Total 0 Types 0/0/0/0/0/0/0/0/0 Lore% 8 Gallery% 19 Achievement% 19 Wizard Run 0 Options --------- ASCII 0 Keyboard 0 Movement Mouse Keybinds 0 Fullscreen 2 Font 18/TerminusBold Map View 76x50 Tactical HUD 1 Map Filters NONE Filters NONE Steam 1 RUN: 98d258c1-a4aa-4b30-858f-6c633119c07a